bitfinex-derivatives/quotes_ETHF0:USTF0_20240830
["timestamp","ask_amount","ask_price","bid_price","bid_amount"]
[1725048940600,0.39822,2511.3,2511.2,0.80353469]
[1725048942394,0.39822,2511.3,2511.2,0.40530469]
[1725048942696,1.39377,2511.3,2511.2,0.40530469]
[1725048942900,6.67987,2511.3,2511.2,0.40530469]
[1725048943086,10.11987,2511.3,2511.2,0.00597193]
[1725048943287,11.11542,2511.3,2511.2,0.00597193]
[1725048943587,15.2797655,2511.3,2511.2,0.00597193]
[1725048951004,18.4875655,2511.3,2511.2,0.00597193]
[1725048956708,24.4875655,2511.3,2511.2,0.00597193]
[1725048956908,0.39833,2510.6,2510.5,0.6243]
[1725048957210,0.39833,2510.6,2510.5,1.21502342]
[1725048957211,1.39415,2510.6,2510.5,1.21502342]
[1725048957416,1.39415,2510.6,2510.5,0.6243]
[1725048957708,1.59681609,2510.6,2510.5,0.6243]
[1725048957909,0.60099609,2510.6,2510.5,0.6243]
[1725048958207,1.00174193,2510.8,2510.7,0.39831]
[1725048958208,0.00597193,2510.8,2510.7,0.39831]
[1725048958610,0.00597193,2510.8,2510.7,4.38151]
[1725048960509,0.00597193,2510.8,2510.7,4.97221151]
[1725048960914,0.00597193,2510.8,2510.7,4.38151]
[1725048961111,0.00597193,2510.8,2510.7,0.39831]
[1725048961314,0.00597193,2510.8,2510.7,4.38151]
[1725048961515,0.00597193,2510.8,2510.7,0.39831]
[1725048961720,0.39833,2510.6,2510.5,0.6243]
[1725048961911,0.39833,2510.6,2510.5,1.21500708]
[1725048962415,0.39833,2510.6,2510.5,0.6243]
[1725048964313,0.39833,2510.6,2510.5,1.61336593]
[1725048964507,0.39833,2510.6,2510.5,1.21502593]
[1725048965216,0.39833,2510.6,2510.5,0.6243]
[1725048967216,0.39833,2510.6,2510.5,1.02264]
[1725048967419,0.40428193,2510.8,2510.7,0.39831]
[1725048967620,0.00597193,2510.8,2510.7,0.39831]
[1725048967923,0.00597193,2510.8,2510.7,5.37729]
[1725048968424,0.00597193,2510.8,2510.7,5.9679766]
[1725048968721,0.00597193,2510.8,2510.7,7.2186766]
[1725048969112,0.00597193,2510.8,2510.7,6.2228966]
[1725048969416,1.40000193,2510.8,2510.7,1.8413866]
[1725048969617,1.40000193,2510.8,2510.7,1.2331866]
[1725048969618,2.39574193,2510.8,2510.7,1.2331866]
[1725048969820,2.39574193,2510.8,2510.7,0.6425]
[1725048970143,1.40000193,2510.8,2510.7,0.6425]
[1725048970318,1.40000193,2510.8,2510.5,0.6243]
[1725048970319,0.39833,2510.6,2510.5,0.6243]
[1725048970517,1.39415,2510.6,2510.5,0.6243]
[1725048973225,1.39415,2510.6,2510.5,1.21504302]
[1725048973520,2.03645,2510.6,2510.5,1.21504302]
[1725048974619,2.03645,2510.6,2510.5,0.6243]
[1725048974813,2.03645,2510.6,2510.5,1.2150431]
[1725048976423,2.03645,2510.6,2510.5,2.07335807]
[1725048977322,2.03645,2510.6,2510.5,1.44905807]
[1725048977526,6.01965,2510.6,2510.5,1.44905807]
[1725048977726,6.64275,2510.6,2510.5,1.44905807]
[1725048978022,0.39834,2510.5,2510.4,0.6425]
[1725048978427,0.39834,2510.5,2510.4,1.23323706]
[1725048978727,1.3942,2510.5,2510.4,1.44904847]
[1725048979025,2.0322,2510.5,2510.4,0.59073706]
[1725048979614,1.3942,2510.5,2510.4,0.59073706]
[1725048979827,1.3942,2510.5,2510.4,1.44908494]
[1725048980215,0.39834,2510.6,2510.4,1.44908138]
[1725048980415,3.61207193,2510.8,2510.5,0.59073706]
[1725048980623,3.61207193,2510.8,2510.6,2.44167453]
[1725048980825,3.21377193,2510.8,2510.7,1.85273706]
[1725048981326,3.61206193,2510.8,2510.7,2.71103344]
[1725048981724,3.61206193,2510.8,2510.7,2.71102607]
[1725048985317,3.61206193,2510.8,2510.7,2.71102759]
[1725048985318,0.40426193,2510.8,2510.7,2.71102759]
[1725048986026,0.40426193,2510.8,2510.7,2.06632759]
[1725048987115,9.90099747,2510.8,2510.7,1.44522759]
[1725048988518,9.90099747,2510.8,2510.5,0.6047]
[1725048988519,0.39833,2510.6,2510.5,0.6047]
[1725048988720,0.39833,2510.6,2510.5,1.86248265]
[1725048988922,0.39831,2510.7,2510.5,2.87020866]
[1725048989118,0.39831,2510.7,2510.6,2.26550866]
[1725048990130,1.82831,2510.7,2510.6,2.26550866]
[1725048990322,7.00610801,2510.7,2510.6,2.26550866]
[1725048990524,16.12306401,2510.7,2510.6,0.85830134]
[1725048990723,16.71776401,2510.7,2510.6,0.85830134]
[1725048990924,0.39836,2510.4,2510.3,0.00597193]
[1725048991129,0.39836,2510.4,2510.3,1.87218431]
[1725048991332,1.04886,2510.4,2510.3,1.87218431]
[1725048991831,1.04886,2510.4,2510.3,0.86435552]
[1725048992025,1.04886,2510.4,2510.3,0.86436266]
[1725048992624,2.04476,2510.4,2510.3,0.86436266]
[1725048992833,13.69207923,2510.4,2510.3,0.86436266]
[1725048994930,13.69207923,2510.4,2510.3,0.8643623]
[1725048995132,23.89577923,2510.4,2510.3,0.00597193]
[1725048998229,0.39845,2509.8,2509.7,1.8729]
[1725048998425,1.39459,2509.8,2509.7,2.89451963]
[1725048998837,16.74351857,2509.8,2509.7,0.85847913]
[1725048999036,0.3985,2509.5,2509.4,0.6462]
[1725048999250,0.3985,2509.5,2509.3,3.2078]
[1725048999251,0.39852,2509.4,2509.3,3.2078]
[1725048999546,0.39852,2509.4,2509.3,4.6573015]
[1725048999547,1.39482,2509.4,2509.3,4.6573015]
[1725048999725,1.39482,2509.4,2509.3,3.79871122]
[1725048999929,10.08498398,2509.4,2509.3,0.59091122]
[1725049000135,0.39853,2509.3,2509.2,0.00597193]
[1725049000335,4.43083,2509.3,2509.2,0.59692199]
[1725049000533,8.93563679,2509.3,2509.2,0.59692199]
[1725049001650,8.93563679,2509.3,2509.2,0.59692171]
[1725049001651,8.34333679,2509.3,2509.2,0.59692171]
[1725049002141,8.34333679,2509.3,2509.2,0.00597193]
[1725049003037,0.65107193,2509.5,2509.2,4.39012193]
[1725049003038,3.44597193,2509.5,2509.2,4.39012193]
[1725049003245,0.00597193,2509.5,2509.4,0.39852]
[1725049003544,0.00597193,2509.5,2509.4,1.03302]
[1725049003736,0.00597193,2509.5,2509.4,5.01782]
[1725049004240,0.00597193,2509.5,2509.4,6.01412]
[1725049006845,0.00597193,2509.5,2509.4,7.46352931]
[1725049008941,0.00597193,2509.5,2509.4,10.67132931]
[1725049009932,0.00597193,2509.5,2509.4,11.66762931]
[1725049011539,0.00597193,2509.5,2509.4,8.45982931]
[1725049011744,0.00597193,2509.5,2509.4,7.01042]
[1725049012050,0.00597193,2509.5,2509.4,8.45981723]
[1725049012346,0.00597193,2509.5,2509.4,9.46780237]
[1725049014336,0.00597193,2509.5,2509.4,8.47150237]
[1725049014538,0.00597193,2509.5,2509.4,7.46351723]
[1725049014740,0.00597193,2509.5,2509.4,3.47491723]
[1725049014937,0.00597193,2509.5,2509.4,6.01032]
[1725049015142,0.00597193,2509.5,2509.4,2.02552]
[1725049015350,0.00597193,2509.5,2509.4,3.47490943]
[1725049015534,0.00597193,2509.5,2509.4,2.47860943]
[1725049015844,0.40447193,2509.5,2509.4,2.47860943]
[1725049016047,0.40447193,2509.5,2509.4,1.44938943]
[1725049016245,0.40447193,2509.5,2509.4,1.84790943]
[1725049016438,8.59333193,2509.5,2509.4,0.59086811]
[1725049016750,1.39487,2509.3,2509.2,0.00597193]
[1725049017050,9.39068564,2509.3,2509.2,0.59689651]
[1725049017245,9.39068564,2509.3,2509.2,0.00597193]
[1725049017642,8.39434564,2509.3,2509.2,0.00597193]
[1725049019152,9.39068564,2509.3,2509.2,0.00597193]
[1725049019351,13.37628564,2509.3,2509.2,0.00597193]
[1725049019539,14.00528564,2509.3,2509.2,0.00597193]
[1725049020251,12.81375039,2509.3,2509.2,0.00597193]
[1725049020447,8.82815039,2509.3,2509.2,0.00597193]
[1725049020954,9.02952637,2509.3,2509.2,0.00597193]
[1725049021149,13.01512637,2509.3,2509.2,0.00597193]
[1725049021453,9.02952637,2509.3,2509.2,0.00597193]
[1725049021763,8.19915039,2509.3,2509.2,0.00597193]
[1725049022756,3.83853,2509.3,2509.2,0.40452193]
[1725049023146,7.05228193,2509.5,2509.2,0.00597193]
[1725049023449,7.05228193,2509.5,2509.3,0.39852]
[1725049023659,7.05228193,2509.5,2509.4,1.31]
[1725049024254,0.39852,2509.4,2509.3,0.39853]
[1725049024560,6.65377193,2509.5,2509.4,0.39852]
[1725049024943,3.44597193,2509.5,2509.4,0.39852]
[1725049025153,0.39852,2509.4,2509.3,0.6576]
[1725049025452,0.39853,2509.3,2509.2,0.40451193]
[1725049025661,0.39853,2509.4,2509.3,0.39853]
[1725049026162,0.39853,2509.3,2509.2,0.00597193]
[1725049026457,0.39853,2509.3,2509.2,0.99543654]
[1725049026859,0.39853,2509.4,2509.3,0.39853]
[1725049027157,0.00597193,2509.5,2509.4,0.39852]
[1725049027356,3.83844,2510.0,2509.9,0.39844]
[1725049027653,3.44,2510.0,2509.9,0.39844]
[1725049027856,3.44,2510.0,2509.9,4.38244]
[1725049028446,3.83842,2510.0,2509.9,0.39844]
[1725049029150,3.44,2510.0,2509.5,4.8165]
[1725049029354,0.39847,2509.7,2509.6,1.44930332]
[1725049029660,0.39848,2509.6,2509.5,4.8165]
[1725049029860,0.6357,2509.6,2509.5,5.80587689]
[1725049030156,0.39848,2509.6,2509.5,5.40737689]
[1725049030359,1.03418,2509.6,2509.5,5.80587689]
[1725049030654,0.6357,2509.6,2509.5,5.80587689]
[1725049030861,0.39848,2509.6,2509.5,5.80587689]
[1725049031057,0.39848,2509.6,2509.5,1.64787689]
[1725049031360,0.39848,2509.7,2509.6,0.39848]
[1725049031555,0.39848,2509.7,2509.6,0.98935689]
[1725049032047,0.39848,2509.7,2509.6,0.39848]
[1725049032248,0.39848,2509.7,2509.6,0.98935055]
[1725049032449,0.39848,2509.7,2509.6,0.59087055]
[1725049032658,0.39848,2509.7,2509.6,0.98935055]
[1725049033761,0.39848,2509.7,2509.6,1.84786842]
[1725049034761,0.39845,2509.8,2509.7,0.39847]
[1725049034946,3.44,2510.0,2509.9,0.39844]
[1725049035151,3.44,2510.0,2509.9,0.98929478]
[1725049035858,3.44,2510.0,2509.9,0.39844]
[1725049036063,3.83842,2510.0,2509.9,0.98928252]
[1725049036558,3.83842,2510.0,2509.9,0.59084252]
[1725049036769,5.09562,2510.0,2509.9,0.59084252]
[1725049037561,15.39683423,2510.0,2509.9,0.59084252]
[1725049037753,21.39683423,2510.0,2509.9,0.59084252]
[1725049037953,0.39848,2509.7,2509.5,4.55649]
[1725049038264,4.49268,2509.6,2509.5,4.158]
[1725049038459,4.49268,2509.6,2509.5,6.00595405]
[1725049038666,4.0942,2509.6,2509.5,6.00595405]
[1725049039259,4.49268,2509.6,2509.5,6.00595405]
[1725049039457,4.0942,2509.6,2509.5,4.5565]
[1725049039767,4.49268,2509.6,2509.5,6.00595365]
[1725049040065,4.49268,2509.6,2509.5,5.60745365]
[1725049040266,4.49268,2509.6,2509.5,6.61550406]
[1725049041077,4.49268,2509.6,2509.5,6.61170406]
[1725049041271,13.95413575,2509.6,2509.5,1.44945365]
[1725049041968,13.95413575,2509.6,2509.5,0.59089282]
[1725049042175,13.95413575,2509.6,2509.5,1.44949641]
[1725049042656,13.95413575,2509.6,2509.5,0.59089282]
[1725049044163,13.95413575,2509.6,2509.5,1.44949825]
[1725049045768,14.95035575,2509.6,2509.5,0.59089282]
[1725049046868,1.39487,2509.3,2509.2,0.00597193]
[1725049047062,5.03618311,2509.3,2509.2,2.46369292]
[1725049047260,5.03618311,2509.3,2509.2,1.45554833]
[1725049047462,4.83487,2509.3,2509.2,1.45554833]
[1725049047669,3.44,2509.3,2509.2,1.45554833]
[1725049047863,3.44,2509.3,2509.2,2.86224201]
[1725049048069,0.39853,2509.4,2509.2,2.86224201]
[1725049048269,0.39853,2509.4,2509.3,1.4495764]
[1725049050169,0.39853,2509.4,2509.3,1.44957266]
[1725049052883,0.39852,2509.4,2509.3,1.44957266]
[1725049053485,0.39852,2509.4,2509.2,0.40451193]
[1725049053889,0.39852,2509.4,2509.3,1.44953778]
[1725049056580,4.43626,2509.5,2509.3,1.84806778]
[1725049056780,3.2078,2509.9,2509.8,0.39845]
[1725049056982,3.44,2510.0,2509.9,0.39844]
[1725049057690,3.44,2510.0,2509.9,0.59084529]
[1725049057691,3.83842,2510.0,2509.9,0.59084529]
[1725049057887,3.83842,2510.0,2509.9,1.44933009]
[1725049058191,3.44,2510.0,2509.9,1.84777009]
[1725049058388,3.44,2510.0,2509.9,2.44907009]
[1725049059303,3.83842,2510.0,2509.9,2.05063009]
[1725049059681,3.44,2510.0,2509.9,1.44933009]
[1725049060292,3.44,2510.0,2509.9,1.4493129]
[1725049060491,3.44,2510.0,2509.9,1.8477529]
[1725049060686,3.44,2510.0,2509.9,1.4493129]
[1725049061086,3.44,2510.0,2509.9,1.8477529]
[1725049061284,0.40437193,2510.2,2510.1,0.39841]
[1725049061285,0.00597193,2510.2,2510.1,0.39841]
[1725049061485,6.6478,2510.8,2510.5,0.39834]
[1725049061799,6.6478,2510.8,2510.6,2.73475249]
[1725049062091,7.0461,2510.8,2510.7,0.59083867]
[1725049062487,15.42833237,2510.8,2510.7,0.59083867]
[1725049063284,11.04683237,2510.8,2510.7,0.59083867]
[1725049063483,11.04683237,2510.8,2510.7,3.9832]
[1725049063484,6.6478,2510.8,2510.7,3.9832]
[1725049063798,6.6478,2510.8,2510.7,4.97223927]
[1725049066593,0.00597193,2511.0,2510.7,9.9832]
[1725049066887,0.00597193,2511.0,2510.9,0.39828]
[1725049067089,3.44,2511.5,2510.9,0.39828]
[1725049067090,3.44,2511.5,2511.4,0.3982]
[1725049067290,3.44,2511.8,2511.0,8.22014284]
[1725049067491,3.83815,2511.8,2511.5,0.39818]
[1725049067688,0.39815,2511.7,2511.6,1.2738]
[1725049067893,0.39815,2511.7,2511.6,0.6553]
[1725049068990,3.83815,2511.8,2511.6,0.6553]
[1725049069189,3.44,2511.8,2511.6,0.6553]
[1725049069490,3.83814,2511.8,2511.6,0.6553]
[1725049071085,0.39815,2511.7,2511.6,0.6553]
[1725049071280,3.83814,2511.8,2511.6,0.6553]
[1725049071483,3.44,2511.8,2511.6,0.6553]
[1725049071682,3.83814,2511.8,2511.6,0.6553]
[1725049072484,4.67706343,2511.7,2511.3,0.39821]
[1725049073386,4.27890343,2511.7,2511.4,0.3982]
[1725049073793,4.67705343,2511.7,2511.4,0.3982]
[1725049075587,4.67705343,2511.7,2511.4,0.39819]
[1725049076586,4.27890343,2511.7,2511.2,0.5944]
[1725049076788,0.40410193,2511.9,2511.6,0.39816]
[1725049076998,0.39814,2511.8,2511.7,1.2647]
[1725049077594,0.00597193,2511.9,2511.7,1.2647]
[1725049077888,0.39814,2511.8,2511.7,1.2647]
[1725049080393,0.40410193,2511.9,2511.7,1.66285]
[1725049080599,3.2078,2512.3,2512.2,0.39807]
[1725049080897,0.398,2512.7,2512.5,0.39802]
[1725049081098,3.2078,2512.8,2512.5,0.39802]
[1725049081099,3.60579,2512.8,2512.5,0.39802]
[1725049081301,3.60579,2512.8,2512.5,0.39801]
[1725049081598,3.60579,2512.8,2512.3,1.2833]
[1725049081599,3.2078,2512.8,2512.3,1.2833]
[1725049081899,0.398,2512.7,2512.5,0.39802]
[1725049082695,0.00397937,2512.9,2512.8,0.39798]
[1725049083995,0.40193937,2512.9,2512.4,3.21377193]
[1725049084204,3.2078,2512.8,2512.4,0.40400193]
[1725049084404,3.2078,2512.8,2512.4,0.00597193]
[1725049084595,0.00397937,2512.9,2512.4,3.21377193]
[1725049084800,0.00397937,2512.9,2512.8,0.39798]
[1725049085589,0.00397937,2512.9,2512.8,4.37718]
[1725049085792,0.00397937,2512.9,2512.8,3.9792]
[1725049086000,0.00397937,2512.9,2512.8,4.37718]
[1725049086902,0.00397937,2512.9,2512.8,0.39798]
[1725049087104,0.00397937,2512.9,2512.5,0.39802]
[1725049087309,0.398,2512.7,2512.5,0.39802]
[1725049087501,0.398,2512.7,2512.4,3.61180193]
[1725049088101,3.44,2512.7,2512.4,0.00597193]
[1725049088405,0.39802,2512.5,2512.4,0.00597193]
[1725049088705,4.56594952,2512.6,2512.4,0.00597193]
[1725049089003,0.39802,2512.6,2512.4,0.00597193]
[1725049089505,0.39802,2512.5,2512.4,0.00597193]
[1725049090292,4.47932,2512.5,2512.4,0.00597193]
[1725049090506,17.0711242,2512.5,2512.4,0.00597193]
[1725049090700,13.8633242,2512.5,2512.4,0.00597193]
[1725049091001,17.0711242,2512.5,2512.4,0.00597193]
[1725049091802,23.0711242,2512.5,2512.4,0.00597193]
[1725049092201,19.0911242,2512.5,2512.4,0.00597193]
[1725049092407,23.0711242,2512.5,2512.4,0.00597193]
[1725049092904,0.3981,2512.0,2511.9,4.1542]
[1725049093103,0.39816,2511.7,2511.5,4.7534]
[1725049093401,4.20307,2512.0,2511.4,3.8648]
[1725049093402,4.43536,2511.8,2511.4,3.8648]
[1725049093595,0.39818,2511.5,2511.4,3.8648]
[1725049093794,0.39818,2511.5,2511.1,4.1542]
[1725049093795,0.99547,2511.5,2511.1,4.1542]
[1725049093992,0.39825,2511.1,2511.0,3.21377193]
[1725049094202,0.39825,2511.1,2511.0,0.00597193]
[1725049097302,8.76761965,2511.1,2511.0,0.00597193]
[1725049097508,10.75885965,2511.1,2511.0,0.00597193]
[1725049097718,3.83831,2510.7,2510.6,4.1542]
[1725049097899,0.39834,2510.6,2510.2,5.17058]
[1725049098097,0.39834,2510.6,2510.3,0.39837]
[1725049098503,0.39834,2510.6,2510.3,4.38157]
[1725049098704,0.39834,2510.5,2510.3,3.9832]
[1725049098905,0.39834,2510.5,2510.2,1.02235193]
[1725049099408,0.39836,2510.4,2510.2,0.62397193]
[1725049100105,3.2078,2511.0,2510.3,3.9832]
[1725049100313,3.2078,2511.0,2510.4,3.2078]
[1725049100505,0.39833,2510.6,2510.4,3.2078]
[1725049100715,0.39837,2510.4,2510.2,0.62397193]
[1725049101004,0.39837,2510.4,2510.2,1.02236193]
[1725049101614,0.39837,2510.3,2510.2,0.62397193]
[1725049101915,4.83431,2510.3,2510.2,0.00597193]
[1725049102204,3.60613,2510.6,2510.2,9.98997193]
[1725049102405,4.43576,2510.8,2510.3,0.5955]
[1725049102610,0.39833,2510.6,2510.3,0.5955]
[1725049102811,0.39834,2510.5,2510.4,0.39835]
[1725049103005,4.43576,2510.8,2510.4,0.39835]
[1725049103006,0.39834,2510.6,2510.4,0.39835]
[1725049103198,0.39834,2510.5,2510.4,0.39835]
[1725049103605,0.39834,2510.5,2510.4,3.9832]
[1725049103908,0.39836,2510.4,2510.3,0.5955]
[1725049104509,0.39837,2510.3,2510.2,0.40436193]
[1725049104719,0.39837,2510.3,2510.2,0.00597193]
[1725049106105,4.83431,2510.3,2510.2,0.00597193]
[1725049106910,8.81831,2510.3,2510.2,0.00597193]
[1725049107105,0.39844,2509.9,2509.8,4.1542]
[1725049107313,0.39844,2509.9,2509.7,4.21416]
[1725049107621,0.39845,2509.8,2509.7,0.6079]
[1725049109021,0.39845,2509.8,2509.7,1.00637]
[1725049109215,0.39845,2509.8,2509.7,0.6079]
[1725049109518,0.39847,2509.7,2509.6,0.39848]
[1725049109812,0.39846,2509.8,2509.5,0.66097193]
[1725049110015,0.39846,2509.8,2509.7,0.39846]
[1725049110016,0.39845,2509.8,2509.7,0.39846]
[1725049110313,1.00203193,2510.0,2509.9,0.39844]
[1725049110314,0.00597193,2510.0,2509.9,0.39844]
[1725049110519,0.00597193,2510.0,2509.9,4.38244]
[1725049111113,0.40439193,2510.0,2509.9,4.38244]
[1725049111315,0.40439193,2510.0,2509.9,0.39844]
[1725049111615,0.40439193,2510.0,2509.8,0.6087]
[1725049111616,0.39844,2509.9,2509.8,0.39844]
[1725049111830,0.40440193,2510.0,2509.9,0.39844]
[1725049112413,0.99612,2509.9,2509.6,0.39847]
[1725049112614,0.39847,2509.7,2509.6,0.39847]
[1725049113009,4.43612,2509.9,2509.5,1.26307193]
[1725049113208,0.39848,2509.7,2509.6,0.39848]
[1725049114316,0.39846,2509.8,2509.7,0.39845]
[1725049115316,0.39848,2509.7,2509.6,0.39847]
[1725049115818,0.39848,2509.6,2509.5,0.40446193]
[1725049117016,0.39847,2509.8,2509.7,0.39846]
[1725049117623,0.39847,2509.8,2509.7,0.99986]
[1725049117817,0.39844,2509.9,2509.8,0.39845]
[1725049118021,4.38244,2509.9,2509.8,0.39845]
[1725049119317,0.39845,2509.8,2509.7,0.99986]
[1725049120718,0.39845,2509.9,2509.8,0.39844]
[1725049121123,4.75154181,2509.9,2509.8,0.39844]
[1725049121525,0.39848,2509.6,2509.5,0.00597193]
[1725049121721,1.3947,2509.6,2509.5,0.00597193]
[1725049122224,4.8347,2509.6,2509.5,0.00597193]
[1725049122412,5.4621,2509.6,2509.5,0.00597193]
[1725049123018,10.44312,2509.6,2509.5,0.00597193]
[1725049123218,14.8088471,2509.6,2509.5,0.00597193]
[1725049125417,14.8088471,2509.6,2508.9,1.2306]
[1725049125418,0.39858,2509.0,2508.9,1.2306]
[1725049126924,0.39858,2509.0,2508.7,3.21377193]
[1725049126925,0.39861,2508.8,2508.7,3.21377193]
[1725049127928,0.39861,2508.9,2508.7,3.61239193]
[1725049130418,2.23303,2509.1,2508.7,3.61239193]
[1725049130619,0.39861,2508.8,2508.7,3.61239193]
[1725049132425,1.39515,2508.8,2508.7,3.21377193]
[1725049132625,2.39169,2508.8,2508.7,3.21377193]
[1725049132932,2.39169,2508.8,2508.1,3.2078]
[1725049132933,0.9967,2508.4,2508.1,3.2078]
[1725049133133,0.39871,2508.2,2508.1,3.2078]
[1725049133326,1.39549,2508.2,2508.1,3.2078]
[1725049133520,13.07877878,2508.2,2508.1,3.2078]
[1725049134030,8.09479878,2508.2,2508.1,3.2078]
[1725049134346,0.00597193,2508.4,2508.3,1.39543]
[1725049134528,0.00597193,2508.4,2508.3,8.39217]
[1725049134723,3.83859,2509.0,2508.9,0.3986]
[1725049136330,3.44,2509.0,2508.9,0.3986]
[1725049136528,0.00597193,2509.2,2508.9,3.9856]
[1725049136728,0.00597193,2509.2,2509.1,0.39856]
[1725049138035,0.40453193,2509.2,2509.1,0.39856]
[1725049138425,0.39856,2509.1,2509.0,1.00427]
[1725049138726,0.40453193,2509.2,2509.1,0.39856]
[1725049140530,0.40453193,2509.2,2509.0,0.6057]
[1725049140531,0.39856,2509.1,2509.0,1.00427]
[1725049141132,0.40453193,2509.2,2509.1,0.39856]
[1725049141929,0.00597193,2509.2,2509.1,0.39856]
[1725049142238,0.00597193,2509.2,2509.1,4.38416]
[1725049143135,0.00597193,2509.2,2509.1,5.38058]
[1725049143439,4.44236193,2509.2,2509.0,0.6057]
[1725049143647,0.39856,2509.1,2509.0,0.6057]
[1725049143940,0.39856,2509.1,2508.9,4.2532]
[1725049143941,0.39858,2509.0,2508.9,4.2532]
[1725049144642,0.39858,2509.0,2508.9,1.0454]
[1725049148540,0.39858,2509.1,2509.0,0.39858]
[1725049148730,0.00597193,2509.2,2509.1,0.39856]
[1725049149241,0.00597193,2509.2,2509.1,14.58838]
[1725049149431,0.00597193,2509.2,2509.1,15.17929636]
[1725049149625,0.00597193,2509.2,2509.1,16.17571636]
[1725049151231,0.00597193,2509.2,2509.1,17.03429915]
[1725049151840,0.00597193,2509.2,2509.1,15.5848]
[1725049152038,0.00597193,2509.2,2509.1,17.03428917]
[1725049152235,0.99604,2510.1,2509.1,17.03428917]
[1725049152236,3.2078,2510.2,2509.1,19.49059629]
[1725049152441,3.44,2510.7,2510.6,0.39833]
[1725049152735,11.58421569,2510.7,2510.4,0.39836]
[1725049152938,0.39835,2510.5,2510.3,0.39837]
[1725049153634,0.39833,2510.6,2510.2,4.1542]
[1725049153833,0.39833,2510.6,2510.3,0.59033144]
[1725049154040,3.84429193,2510.7,2510.5,0.39833]
[1725049154834,3.84429193,2510.7,2510.3,0.39837]
[1725049154835,0.39834,2510.5,2510.3,0.39837]
[1725049155239,4.45864,2510.5,2510.3,0.39837]
[1725049156136,0.39836,2510.4,2510.3,0.39837]
[1725049157546,5.05025,2510.5,2510.3,0.39837]
[1725049157845,5.05025,2510.5,2510.4,0.39836]
[1725049158044,7.05208193,2510.7,2510.6,0.39833]
[1725049161348,6.65377193,2510.7,2510.6,0.39833]
[1725049161649,6.6478,2511.2,2510.6,9.60613]
[1725049161849,6.6478,2511.2,2511.1,0.39825]
[1725049161850,3.44,2511.2,2511.1,0.39825]
[1725049162151,0.39821,2511.4,2511.2,0.39823]
[1725049162444,0.39822,2511.3,2511.2,0.39823]
[1725049162654,4.57903153,2511.4,2511.2,0.39823]
[1725049162848,0.39825,2511.1,2511.0,0.39825]
[1725049163039,4.43559,2511.2,2510.7,5.4261]
[1725049163248,3.83829,2510.9,2510.7,5.4261]
[1725049163447,0.39829,2510.8,2510.7,5.82441]
[1725049163751,0.39829,2510.8,2510.7,1.2719]
[1725049164152,0.39829,2510.8,2510.7,1.67021]
[1725049164536,4.48459,2510.9,2510.7,1.67021]
[1725049165550,0.39829,2510.8,2510.7,1.2719]
[1725049165851,0.39832,2510.7,2510.5,0.39834]
[1725049166543,0.3983,2510.8,2510.6,0.39833]
[1725049166751,0.39829,2510.8,2510.6,0.39833]
[1725049166938,3.60607,2511.0,2510.8,0.39829]
[1725049167142,3.2078,2511.0,2510.9,0.39828]
[1725049168142,3.2078,2511.0,2510.9,1.03838]
[1725049168343,3.44,2511.2,2511.1,0.39825]
[1725049169449,3.83823,2511.2,2511.1,0.39825]
[1725049169953,1.2538,2511.4,2510.9,0.6401]
[1725049170149,0.39824,2511.2,2510.9,0.6401]
[1725049170350,0.39824,2511.2,2511.0,0.39825]
[1725049170654,0.39825,2511.1,2511.0,0.39826]
[1725049170949,3.44,2511.3,2511.0,0.39826]
[1725049171142,0.39826,2511.1,2510.9,0.6401]
[1725049171456,0.39826,2511.1,2511.0,0.39826]
[1725049171650,0.39824,2511.2,2511.0,0.39826]
[1725049173545,0.39825,2511.1,2511.0,0.39826]
[1725049174349,0.39825,2511.1,2510.9,1.03837]
[1725049174550,0.39826,2511.0,2510.8,0.39829]
[1725049174757,0.39828,2510.9,2510.7,4.7609]
[1725049175050,0.39829,2510.9,2510.7,5.15921]
[1725049175241,3.83827,2511.0,2510.8,0.39829]
[1725049175846,0.39828,2510.9,2510.8,0.39829]
[1725049176443,5.45712,2511.4,2510.7,4.7609]
[1725049176643,0.39824,2511.2,2511.0,0.39825]
[1725049176856,3.83823,2511.3,2511.2,0.39823]
[1725049177053,4.85981,2511.4,2510.8,0.99574]
[1725049177354,3.2078,2511.4,2511.3,0.39822]
[1725049182157,3.606,2511.4,2511.3,0.39822]
[1725049182353,3.2078,2511.4,2511.3,0.39822]
[1725049183865,3.606,2511.4,2511.3,0.39822]
[1725049185167,0.3982,2511.4,2511.3,0.39822]
[1725049185867,0.39822,2511.3,2511.2,1.04242]
[1725049186166,1.02072,2511.3,2511.2,1.04242]
[1725049187666,0.6225,2511.3,2511.2,1.04242]
[1725049187863,0.39826,2511.1,2510.9,3.2078]
[1725049188066,0.39827,2511.0,2510.8,0.39828]
[1725049188268,0.39827,2511.0,2510.9,0.39828]
[1725049188456,0.39826,2511.1,2510.9,0.39828]
[1725049188771,0.39826,2511.1,2510.9,0.39827]
[1725049189158,0.39826,2511.0,2510.9,0.39827]
[1725049189463,5.02829,2511.2,2510.9,0.39827]
[1725049189658,0.39826,2511.0,2510.9,0.39827]
[1725049190858,5.02829,2511.2,2510.8,0.39828]
[1725049190859,0.39828,2510.9,2510.8,0.39828]
[1725049191061,0.39828,2510.9,2510.7,4.7495]
[1725049191062,0.39829,2510.8,2510.7,5.1478]
[1725049191270,0.39829,2510.8,2510.7,0.9936]
[1725049191766,0.99578,2510.7,2510.4,0.39835]
[1725049191966,0.39833,2510.6,2510.3,7.362]
[1725049192159,0.6203,2510.7,2510.5,0.39834]
[1725049192360,0.39833,2510.6,2510.5,0.39834]
[1725049193160,0.39833,2510.6,2510.4,0.39835]
[1725049193356,0.39834,2510.5,2510.4,0.39835]
[1725049193555,0.39834,2510.5,2510.4,0.98848997]
[1725049194157,0.39836,2510.4,2510.3,7.76036]
[1725049194355,0.39836,2510.4,2510.3,8.35051833]
[1725049194568,0.39836,2510.4,2510.3,4.65542714]
[1725049194770,1.39426,2510.4,2510.3,3.79795833]
[1725049195161,1.39426,2510.4,2510.3,3.2078]